Cogmind - Beta 13 @@@ ROGUE MODE // 2024.07.17 @ 12:51:08 Player: maykstuff Result: Destroyed by G-47 Trooper with Particle Gun Performance ------------- Evolutions (2) 1000 Regions Visited (4) 800 Robots Destroyed (88) 440 Value Destroyed (2435) 2435 Prototype IDs (6) 120 Alien Tech Used (0) 0 Bonus (343) 343 TOTAL SCORE: 5138 Bonus ------- High Alert Combat Kills 422 Follower Combat Kills 127 Friendly Fire -206 Cogmind --------- Core Integrity 0/550 Matter 295/300 Energy 81/100 System Corruption 0% Temperature Cool (9) Movement Core (350) Ox6 Location -8/Materials Parts ------- > --- POWER (1) -------- (None) > --- PROPULSION (3) --- (None) > --- UTILITY (5) ------ Large Storage Unit Signal Interpreter Improved Targeting Computer Melee Analysis Suite > --- WEAPON (2) ------- (None) > --- INVENTORY (15) --- Ion Engine Cooling System Medium Storage Unit Peak State ------------ > --- POWER ------------ Light Deuterium Engine > --- PROPULSION ------- Armored Treads Armored Treads Armored Treads > --- UTILITY ---------- Medium Storage Unit Signal Interpreter Transport Network Coupler Improved Targeting Computer Target Analyzer > --- WEAPON ----------- Improved Medium Laser Improved Assault Rifle > --- INVENTORY -------- Ion Engine Armored Treads Cooling System Melee Analysis Suite Advanced Beam Cannon Improved Grenade Launcher Katana Katana [Rating: 28] Favorites ----------- Power Light Deuterium Engine Engine Light Deuterium Engine Propulsion Armored Treads Treads Armored Treads Wheel Wheel Utility Signal Interpreter Device Improved Terrain Scanner Storage Medium Storage Unit Processor Signal Interpreter Weapon Improved Assault Rifle Energy Gun Improved Medium Laser Energy Cannon Advanced Beam Cannon Ballistic Gun Improved Assault Rifle Ballistic Cannon Assault Cannon Launcher Grenade Launcher Impact Weapon Hammer Slashing Weapon Katana Build | -11 -10 -10 -9 -8 ------- Run | Yrd Mat Min Mat Mat Slots Evolved 4 | . . . 2 2 Power . | . . . . . Propulsion 1 | . . . . 1 Utility 3 | . . . 2 1 Weapon . | . . . . . Parts Attached 66 | 8 9 5 23 21 Power 6 | 2 2 . 2 . Engine 6 | 2 2 . 2 . Core . | . . . . . Reactor . | . . . . . Propulsion 16 | 2 2 1 5 6 Treads 8 | . . . 4 4 Leg . | . . . . . Wheel 8 | 2 2 1 1 2 Hover . | . . . . . Flight . | . . . . . Utility 12 | 2 2 . 3 5 Device 2 | 1 . . . 1 Storage 3 | 1 1 . . 1 Processor 7 | . 1 . 3 3 Hackware . | . . . . . Protection . | . . . . . Artifact . | . . . . . Weapon 32 | 2 3 4 13 10 Energy Gun 6 | 2 . . 2 2 Energy Cannon 2 | . . . 1 1 Ballistic Gun 6 | . 1 1 2 2 Ballistic Cannon 1 | . . . . 1 Launcher 11 | . 1 3 5 2 Special Weapon . | . . . . . Impact Weapon 1 | . 1 . . . Slashing Weapon 5 | . . . 3 2 Piercing Weapon . | . . . . . Special Melee Weapon . | . . . . . Unidentified Prototypes 3 | . . . 3 . Parts Lost 25 | . 5 1 3 16 Power 2 | . 1 . . 1 Propulsion 11 | . 2 1 2 6 Utility 2 | . . . . 2 Weapon 10 | . 2 . 1 7 Highest Loss Streak 7 | . 2 1 2 7 To Critical Strikes . | . . . . . Average Slot Usage (%) 95 | . 98 95 99 84 Engine 10 | . 14 14 11 5 Treads 8 | . . . 12 15 Wheel 14 | . 26 24 8 4 Device 2 | . 6 . . 3 Storage 11 | . 14 14 11 9 Processor 23 | . 7 14 33 32 Energy Gun 6 | . 13 . 4 3 Ballistic Gun 5 | . 7 . 6 3 Launcher 7 | . 4 27 5 . Slashing Weapon 1 | . . . 3 . Naked Turns . | . . . . . Heaviest Build 30 | 14 18 23 30 26 Greatest Support 60 | 26 32 26 40 60 Greatest Overweight (x) 7 | . 1 1 2 7 Average Overweight (x) . | . . . . . Largest Inventory Capacity 15 | 8 10 10 10 15 Average Capacity 9 | 6 8 10 10 10 Most Carried 10 | 5 9 10 10 10 Average Carried 8 | 2 7 9 9 7 Final Capacity 15 | 8 10 10 10 15 Final Carried 10 | 5 9 10 10 3 Class Distribution -------------------- 63% | Mutant 36% | Scavenger-Mutant Dominant Class ---------------- Mutant | -10/Materials Scavenger-Mutant | -10/Mines Mutant | -9/Materials Mutant | -8/Materials Resources | -11 -10 -10 -9 -8 ----------- Run | Yrd Mat Min Mat Mat Matter Collected 1684 | 270 212 149 405 648 Remotely . | . . . . . Salvage Created 2794 | 131 473 46 1182 962 Parts 193 | 7 39 5 81 61 Haulers Intercepted 9 | . 2 . 5 2 Recyclers Shooed 2 | . . . 1 1 Parts Field Recycled . | . . . . . Retrieved Matter . | . . . . . Parts Self-Destructed . | . . . . . Prevented . | . . . . . Kills | -11 -10 -10 -9 -8 ------- Run | Yrd Mat Min Mat Mat Combat Hostiles Destroyed 59 | . 11 3 24 21 Melee 2 | . . . 1 1 Guns 31 | . 10 . 12 9 Cannons 7 | . . . 3 4 AOE 18 | . 1 3 7 7 Classes Destroyed 13 | 2 5 . 4 2 Worker 2 | . . . 1 1 Builder 3 | . 1 . . 2 Tunneler 5 | 2 . 1 2 . Hauler 9 | . 2 . 5 2 Recycler 3 | 1 . . 1 1 Operator 1 | . . . . 1 Watcher 5 | . 1 . 3 1 Swarmer 11 | . 3 1 4 3 Grunt 30 | . 8 2 12 8 Brawler 1 | . . . 1 . Duelist 2 | . . . 1 1 Sentry 13 | . . . 7 6 Hunter 3 | . . . . 3 Best Kill Streak 8 | 3 4 2 8 6 Combat Bots Only 8 | . 3 2 8 4 Max Kills in Single Turn 3 | 2 1 1 2 3 Gunslinging . | . . . . . Exploded 2 | . 1 1 2 2 Melee 1 | . . . 1 1 Uniques/NPCs Destroyed . | . . . . . Combat | -11 -10 -10 -9 -8 -------- Run | Yrd Mat Min Mat Mat Hostile Shots Fired 392 | . 70 10 84 228 Missed 106 | . 19 4 20 63 Damage Taken 4085 | 31 539 102 958 2455 Core 1066 | . 141 36 327 562 Absorbed by Shields . | . . . . . Core Remaining (%) 49 | 100 . 29 18 . Volleys Fired 197 | 5 39 8 65 80 Largest 2 | 2 2 2 2 2 Hottest 91 | 80 80 63 91 80 Shots Fired 295 | 10 66 10 89 120 Gun 186 | 10 60 . 49 67 Cannon 68 | . . . 21 47 Launcher 41 | . 6 10 19 6 Special . | . . . . . Kinetic 129 | . 24 . 28 77 Thermal 98 | 5 14 . 42 37 Explosive 41 | . 6 10 19 6 Electromagnetic 27 | 5 22 . . . Robot Hit Streak 16 | 5 10 5 16 10 Robot Miss Streak 4 | 1 4 1 2 2 Penetration Max . | . . . . . Secondary Targets 1 | . 1 . . . Max Gunslinging Chain 1 | . 1 . . . Shots Hit Robots 212 | 6 38 6 71 91 Core Hits 135 | 4 25 6 50 50 Critical Kills 3 | . . . 2 1 Critical Parts Destroyed . | . . . . . Critical Strikes 11 | 1 . . 3 7 Burn 6 | . . . . 6 Meltdown 1 | . . . 1 . Destroy 2 | . . . 1 1 Corrupt 1 | 1 . . . . Sever 1 | . . . 1 . Melee Attacks 26 | . 2 . 16 8 Impact 2 | . 2 . . . Slashing 24 | . . . 16 8 Piercing . | . . . . . Sneak Attacks 5 | . . . 4 1 Combat Hostiles . | . . . . . Follow-up Attacks 1 | . . . . 1 Damage Inflicted 6219 | 171 801 322 2590 2335 Guns 1896 | 95 489 . 579 733 Cannons 1104 | . . . 291 813 Explosions 2487 | 76 312 322 1229 548 Melee 732 | . . . 491 241 Ramming . | . . . . . Kinetic 1564 | . 173 . 334 1057 Thermal 1237 | 119 93 . 536 489 Explosive 2411 | . 312 322 1229 548 Electromagnetic 275 | 52 223 . . . Impact . | . . . . . Slashing 732 | . . . 491 241 Piercing . | . . . . . Highest Corruption . | . . . . . Average Corruption . | . . . . . Corruption Purged . | . . . . . Corruption Blocked . | . . . . . Overload Shots . | . . . . . Overflow Damage 231 | . . . 148 83 Projectiles . | . . . . . Explosions 182 | . . . 139 43 Melee 49 | . . . 9 40 Knockbacks 9 | . . . . 9 Impact . | . . . . . Kinetic 8 | . . . . 8 Secondary 1 | . . . . 1 Self-Inflicted Damage 263 | 31 20 35 54 123 Shots 10 | 1 1 2 3 3 Rammed 1 | . . . . 1 Targets Rammed 1 | . . . . 1 Kicked . | . . . . . Crushed . | . . . . . Highest Temperature 288 | 74 103 12 288 108 Average Temperature 43 | 32 41 4 67 20 Received Heat Transfer 1395 | . 186 27 327 855 Effects 4 | . . . 4 . Interference 4 | . . . 4 . Siege Activations . | . . . . . Robots Corrupted . | . . . . . Combat Hostiles . | . . . . . Parts Fried . | . . . . . Impact Corruptions . | . . . . . Robots Melted 1 | . . . 1 . Combat Hostiles 1 | . . . 1 . Parts Melted 5 | . . . 2 3 Heat Transferred 2941 | 200 225 . 1036 1480 Parts Sabotaged . | . . . . . Parts Stolen . | . . . . . Parts Stripped . | . . . . . Power Chain Reactions 1 | 1 . . . . Alert | -11 -10 -10 -9 -8 ------- Run | Yrd Mat Min Mat Mat Peak Influence 891 | 15 295 211 891 817 Initial 271 | . 9 57 81 271 Average 381 | 3 127 150 596 506 Maximum Alert Level 3 | . 1 1 3 3 Low Security (%) 37 | 100 78 96 5 . Level 1 16 | . 21 3 12 28 Level 2 28 | . . . 40 61 Level 3 17 | . . . 41 10 Level 4 . | . . . . . Level 5 . | . . . . . High Security . | . . . . . Max Security . | . . . . . Squads Dispatched 15 | . 2 1 4 8 Investigation 6 | . 2 1 1 2 Extermination . | . . . . . Reinforcement 5 | . . . 2 3 Assault 1 | . . . 1 . Garrison 3 | . . . . 3 Intercept . | . . . . . Searches Triggered . | . . . . . Construction Impeded . | . . . . . Haulers Reinforced . | . . . . . Active Scanning Responses . | . . . . . Cargo Convoy Interrupts . | . . . . . Stealth | -11 -10 -10 -9 -8 --------- Run | Yrd Mat Min Mat Mat Distress Signals 11 | . . . 2 9 Communications Jammed . | . . . . . Distress Signals . | . . . . . Times Spotted 96 | . 16 5 37 38 Peak Tracking Total 8 | . 3 2 4 8 Tactical Retreats 5 | . . . 1 4 Traps | -11 -10 -10 -9 -8 ------- Run | Yrd Mat Min Mat Mat Traps Triggered . | . . . . . Indirectly . | . . . . . Trap Hack Attempts . | . . . . . Triggered . | . . . . . Disarmed . | . . . . . Reprogrammed 1 | . . . . 1 Reused . | . . . . . Traps Extracted . | . . . . . Installed . | . . . . . Triggered . | . . . . . Machines | -11 -10 -10 -9 -8 ---------- Run | Yrd Mat Min Mat Mat Machines Disabled 12 | . . 1 8 3 Max in Single Turn 2 | . . 1 2 1 Machines Repaired . | . . . . . Machines Dismantled . | . . . . . Machines Sabotaged . | . . . . . Overloaded Fab Kills . | . . . . . Hacking | -11 -10 -10 -9 -8 --------- Run | Yrd Mat Min Mat Mat Machines Accessed 19 | . 6 1 8 4 Terminals 15 | . 5 . 6 4 Fabricators . | . . . . . Repair Stations . | . . . . . Recycling Units 2 | . 1 . 1 . Scanalyzers 1 | . . . 1 . Garrison Access . | . . . . . Total Hacks 55 | . 15 1 20 19 Successful 33 | . 6 1 14 12 Failed 22 | . 9 . 6 7 Catastrophic 4 | . 2 . 1 1 Database Lockouts . | . . . . . Manual 25 | . 6 . 13 6 Terminals 50 | . 14 . 17 19 Fabricators . | . . . . . Repair Stations . | . . . . . Recycling Units 2 | . 1 . 1 . Scanalyzers 2 | . . . 2 . Garrison Access . | . . . . . Terminal Hacks 18 | . 3 1 6 8 Prototype ID Bank 1 | . . . 1 . Open Door 1 | . . 1 . . Alert Level 1 | . . . 1 . Unreport Threat 3 | . . . 1 2 Locate Traps 3 | . 2 . . 1 Reprogram Traps 1 | . . . . 1 Maintenance Status 1 | . . . . 1 Hauler Manifests 2 | . . . 1 1 Zone Layout 5 | . 1 . 2 2 Fabricator Hacks . | . . . . . Repair Station Hacks . | . . . . . Recycling Unit Hacks 2 | . 1 . 1 . Report Inventory 2 | . 1 . 1 . Scanalyzer 2 | . . . 2 . Insert Component 1 | . . . 1 . Analyze 1 | . . . 1 . Garrison Access Hacks . | . . . . . Unauthorized Hacks 11 | . 2 . 5 4 Terminals 11 | . 2 . 5 4 Botnet 11 | . 2 . 5 4 Fabricators . | . . . . . Repair Stations . | . . . . . Recycling Units . | . . . . . Scanalyzers . | . . . . . Garrison Access . | . . . . . Data Cores Recovered . | . . . . . Used . | . . . . . Hacking Detections 15 | . 5 . 7 3 Full Trace Events 6 | . 3 . 1 2 Feedback Events . | . . . . . Feedback Blocked . | . . . . . Robot Schematics Acquired . | . . . . . Robots Built . | . . . . . Authchips . | . . . . . Time . | . . . . . Total Robot Build Rating . | . . . . . Part Schematics Acquired 1 | . . . 1 . Parts Built . | . . . . . Authchips . | . . . . . Time . | . . . . . Total Part Build Rating . | . . . . . Parts Repaired . | . . . . . Time . | . . . . . Parts Recycled . | . . . . . Recycled Matter . | . . . . . Retrieved Matter . | . . . . . Retrieved Components . | . . . . . Parts Scanalyzed 1 | . . . 1 . Part Schematics Acquired 1 | . . . 1 . Parts Damaged . | . . . . . Bothacking | -11 -10 -10 -9 -8 ------------ Run | Yrd Mat Min Mat Mat Used RIF Installer . | . . . . . Robots Hacked . | . . . . . Non-combat . | . . . . . Combat . | . . . . . Robot Hacks Applied . | . . . . . Relay Couplers Released . | . . . . . Fabnet Peak Effective % . | . . . . . Robots Rewired . | . . . . . Allies Hacked . | . . . . . Hacks Repelled . | . . . . . Allies | -11 -10 -10 -9 -8 -------- Run | Yrd Mat Min Mat Mat Total Allies 3 | . . 3 . . Largest Group 3 | . . 3 3 . Highest-Rated Group 40 | . . 40 40 . Highest-Rated Ally 16 | . . 16 16 . Total Orders . | . . . . . Ally Attacks 26 | . . 10 16 . Total Damage 293 | . . 90 203 . Kills 5 | . . 1 4 . Allies Corrupted . | . . . . . Allies Melted . | . . . . . Intel | -11 -10 -10 -9 -8 ------- Run | Yrd Mat Min Mat Mat Robot Analysis Total . | . . . . . Derelict Logs Recovered 1 | . . 1 . . Drone Launches . | . . . . . Drone Recoveries . | . . . . . Exploration | -11 -10 -10 -9 -8 ------------- Run | Yrd Mat Min Mat Mat Turns Passed 3357 | 91 909 392 1236 729 Spaces Moved 2351 | 63 797 396 734 361 Core 9 | 2 . . . 7 Treads 504 | . . . 382 122 Legs . | . . . . . Wheels 1838 | 61 797 396 352 232 Hover . | . . . . . Flight . | . . . . . Fastest Speed 50 | 50 90 80 80 85 Average Speed 111 | 89 95 90 133 128 Slowest Speed 400 | 100 115 95 170 400 Overloaded Moves . | . . . . . Propulsion Burnouts . | . . . . . Robots Hopped . | . . . . . Cave-ins Triggered . | . . . . . Exploration Rate (%) 56 | 4 95 81 65 37 Regions Visited 4 Branch Regions 1 Pre-discovered Areas . | . . . . . Known Exits Taken 3 | . 1 1 1 . Unknown Exits Taken 1 | 1 . . . . Scrap Searched 1 | . . 1 . . Spaces Dug 10 | . . . 10 . Terrain Destroyed 316 | 6 24 72 158 56 Melee . | . . . . . Projectile 5 | . . . . 5 AOE 311 | 6 24 72 158 51 Terrain Rammed . | . . . . . Walls Destroyed . | . . . . . Machines Disabled . | . . . . . Actions | -11 -10 -10 -9 -8 --------- Run | Yrd Mat Min Mat Mat Total 2733 | 83 872 417 871 490 Wait 55 | 3 17 2 18 15 Move 2347 | 62 796 395 733 361 Hop . | . . . . . Pick Up 26 | 5 6 4 8 3 Fast Attach 16 | 7 3 1 1 4 Attach 17 | . 3 . 5 9 Detach 1 | . 1 . . . Swap 33 | 1 3 4 17 8 Drop 15 | . 2 3 8 2 Fire 197 | 5 39 8 65 80 Melee 25 | . 2 . 16 7 Ram . | . . . . . Kick . | . . . . . Crush 1 | . . . . 1 Escape Stasis . | . . . . . Rewire . | . . . . . Trap . | . . . . . Miscellaneous . | . . . . . Route ------- -11/Scrapyard -10/Materials (discovered 4 exits: *Mat x3 / *Min) -10/Mines (discovered 2 exits: *Mat x2) -9/Materials (discovered 4 exits: *Mat x3 / *Min) -8/Materials (discovered 1 exit: *Sto) History --------- Turn | Location | Event 11 | -11/Scrapyard | Discovered new exit (range 15) 92 | -11/Scrapyard | Entered Materials 155 | -10/Materials | Discovered new exit (range 12) 299 | -10/Materials | Discovered new exit (range 11) 304 | -10/Materials | Build established: Mutant 580 | -10/Materials | Core integrity fell below 50% 620 | -10/Materials | Discovered new exit (range 7) 637 | -10/Materials | Identified exit to Materials 931 | -10/Materials | Discovered exit to Materials (range 4) 975 | -10/Materials | Identified exit to Mines 1001 | -10/Materials | Entered Mines 1002 | -10/Mines | Assembled infested the area 1007 | -10/Mines | Assisted by a Guerilla fighting off Assembled 1008 | -10/Mines | Received a Rocket Launcher from a helpful Derelict 1018 | -10/Mines | Learned 2 Materials zone layouts 1032 | -10/Mines | Build established: Scavenger-Mutant 1187 | -10/Mines | Discovered exit to Materials (range 14) 1283 | -10/Mines | Assisted by bots powering up and referring to "LRC-V3" 1361 | -10/Mines | Discovered exit to Materials (range 12) 1370 | -10/Mines | Met a Derelict shopkeep closing up shop 1393 | -10/Mines | Entered Materials 1393 | -9/Materials | Accompanied by 3 allies 1393 | -9/Materials | Evolved 2 slots: Utility x2 1394 | -9/Materials | Identified exit to Materials 1394 | -9/Materials | Identified exit to Mines 1845 | -9/Materials | Destroyed 8 combat bots 1908 | -9/Materials | Core integrity fell below 50% 1989 | -9/Materials | Discovered exit to Materials (range 16) 2175 | -9/Materials | Build established: Mutant 2368 | -9/Materials | Core integrity fell below 20% 2398 | -9/Materials | Discovered exit to Materials (range 9) 2593 | -9/Materials | First assault squad dispatched 2629 | -9/Materials | Entered another Materials area 2629 | -8/Materials | Evolved 2 slots: Propulsion x1, Utility x1 2738 | -8/Materials | Discovered new exit (range 8) 2758 | -8/Materials | Garrison activated, responded to threat 2817 | -8/Materials | Identified exit to Storage 3040 | -8/Materials | Lost 5 parts (2n3w) 3073 | -8/Materials | Core integrity fell below 50% 3096 | -8/Materials | Lost 3 parts (1p1u1w) 3345 | -8/Materials | Core integrity fell below 20% 3358 | -8/Materials | Destroyed by G-47 Trooper with Particle Gun Last Messages --------------- 03320_ Critical hit (Burn: +37). 03326_ Electrolysis Chamber disabled. 03331_ Critical hit (Burn: +37). 03334_ Arm. Wheel destroyed. 03335_ R-06 Scavenger collects Hover Unit. 03337_ Discarded Target Analyzer. 03338_ R-06 Scavenger collects Hover Unit. 03338_ Lgt. Treads destroyed. 03338_ Katana follow-up attack on G-47 Trooper. 03338_ G-47 Trooper destroyed. 03340_ Lgt. Treads destroyed. 03344_ Katana destroyed. 03346_ Recoil Stabilizer destroyed. 03348_ Katana destroyed. 03351_ R-06 Scavenger collects Aluminum Leg. 03351_ G-47 Trooper destroyed. 03352_ Electrolysis Chamber disabled. 03354_ W-25 Informer sends out distress signal. 03356_ Imp. Medium Laser destroyed. 03356_ Critical hit (Burn: +37). Map ----- +----------------------------------------------------+ | ?????????????????????????????????????????????????? | | ?????????????????????????????????????????????????? | | ?????????????????????????????????????????????????? | | ?????????????????????????????????????????????????? | | ?????????????????????????????????????????????????? | | ?????????????????????????????????????????????????? | | ?????????????????????????????????????????????????? | | ?????????????????????????????????????????????????? | | ?????????????????????????????????????????????????? | | ?????????????????????????????????????????????????? | | ?????????????????????????????????????????????????? | | ?????????????????????????????????????????????????? | | ?????????????????????????????? ??????????????????? | | ?????????????????????????????? ??????????????????? | | ?????????????????????????????? ??????????????????? | | ?????????????????????????????? ? #???????????????? | | ????????????????????? ???????? #??w ???????????? | | ?????????????????????? ??????? #?k ????????????? | | ??????????????????????#+###### # ????????????? | | ???????????????? #??# """??? | | ???????????????? H #??# """??? | | ???????????????? #??# """??? | | ????????????????########### r#### #??# """??? | | ?????????????????# ### ##########??# """??? | | ?????????????????# """ *#!* #???###########??? | | ?????????????????# """[%g@! ##### #??????? | | ?????????????????# """g%#[ u ######## | | ?????????????????# /u T | | ?????????????????# """ # w ######+# | | ?????????????????# """ # uu ##### #??#! | | ?????????????????# "" # u #???### ###??# | | ?????????????????# ####+######???# #????# """ | | ?????????????????# "" # #???# #????# """ | | ?????????????????# """ + "" #???# #????# """ | | ?????????????????# """ # """ T" #???# #????# | | ?????????????????# # """ "" #???# #?#??##### | | ?????????????????#! # """ #???# # #??????? | | ?????????????????#####+## ##### # #??????? | | ?????????????????????# ## + #??????? | | ????????????????###### ## ##### # #??????? | | ????????????????# ! # ############???# #???###??? | | ????????????????# # #????????????### ###?# ??? | | ????????????????# !# ############## %! #?# ??? | | ????????????????# ! # #?# ??? | | ????????????????# + #?# ??? | | ????????????????# " # #?# ??? | | ????????????????# T ###+#########+## #?###??? | | ????????????????# " # ## ^ ###+####?????? | | ????????????????# # T ## """" # #?????? | | ????????????????###### ## """" # #?????? | +----------------------------------------------------+ Best States ------------- Heat Dissipation 31 Energy Generation 14 Energy Capacity 265 Matter Stores 300 Matter Capacity 300 Sight Range 16 Terrain Scan Range 16 Terrain Scan Density 10 Evasion (%) 44 Targeting Accuracy 6 Melee Accuracy 5 Target Analysis 5 Recoil Reduction 4 Item Schematics ----------------- Wheel | -9/Materials | Scanalyzed Robot Schematics ------------------ None Fabricated ------------ Nothing Alien Tech Used ----------------- None Achievements -------------- Quantum Hacking True Hacker Challenges ------------ None Game ------ Seed HardlightRagnarokCannon Manual? 0 Play Time 00:40:33 Cumulative 15.2 hours Start 2024.07.15 @ 19:19:15 End 2024.07.17 @ 12:51:08 Sessions 3 Manual Loads 0 Difficulty Rogue Special Mode None Game No. 32 Rogue 32 Adventurer 0 Explorer 0 Win Type - Total 0 Types 0/0/0/0/0/0/0/0/0 Lore% 13 Gallery% 16 Achievement% 17 Wizard Run 0 Options --------- Layout 1 ASCII 1 Keyboard 0 Movement Numpad Keybinds 0 Fullscreen 1 Font 24/Proggy Map View 50x35 Zoom Use 0% Tactical HUD 1 Map Filters NONE Filters NONE Steam 0 RUN: 38305a37-9a15-49d2-8d46-9dfb9c568a56